bitfinex/quotes_BTCUSD_20241223
["timestamp","ask_amount","ask_price","bid_price","bid_amount"]
[1734933959616,0.209597,95421.0,95405.0,0.209632]
[1734933959963,0.209601,95419.0,95405.0,0.209632]
[1734933960110,0.00104764,95418.0,95405.0,0.209632]
[1734933960509,0.1252,95416.0,95399.0,0.2097306]
[1734933960731,0.10235604,95415.0,95399.0,8.56e-05]
[1734933961321,0.10235604,95415.0,95405.0,0.001]
[1734933961723,0.209613,95414.0,95405.0,0.001]
[1734933961969,0.10235604,95413.0,95405.0,0.001]
[1734933962350,0.209617,95412.0,95405.0,0.001]
[1734933962563,0.10235604,95411.0,95405.0,0.002]
[1734933963102,0.10235604,95411.0,95405.0,0.001]
[1734933963542,0.10235604,95411.0,95399.0,0.2107306]
[1734933963873,0.10235604,95411.0,95399.0,0.2097306]
[1734933964271,0.209621,95410.0,95405.0,0.002]
[1734933964481,0.5205504,95410.0,95405.0,0.002]
[1734933964680,0.209626,95408.0,95399.0,8.56e-05]
[1734933964886,0.209626,95408.0,95405.0,0.001]
[1734933965116,0.3109294,95410.0,95399.0,0.0020856]
[1734933965523,0.3119294,95410.0,95405.0,0.001]
[1734933965678,0.3109294,95410.0,95399.0,0.0020856]
[1734933966079,0.001,95408.0,95405.0,0.001]
[1734933966305,0.1013084,95410.0,95399.0,8.56e-05]
[1734933966726,0.1023084,95410.0,95405.0,0.001]
[1734933967904,0.001,95410.0,95405.0,0.001]
[1734933968128,0.00104764,95417.0,95403.0,0.209635]
[1734933968335,0.1013084,95416.0,95405.0,0.002]
[1734933968616,0.1013084,95416.0,95405.0,0.003]
[1734933968617,0.001,95408.0,95405.0,0.003]
[1734933968849,0.001,95408.0,95405.0,0.002]
[1734933969099,0.001,95408.0,95405.0,0.003]
[1734933969338,0.001,95410.0,95405.0,0.003]
[1734933969582,0.209616,95413.0,95401.0,0.00104809]
[1734933969811,0.209616,95413.0,95405.0,0.001]
[1734933970048,0.209605,95418.0,95399.0,8.56e-05]
[1734933970049,0.209619,95411.0,95403.0,0.001]
[1734933970310,0.10235604,95410.0,95403.0,0.001]
[1734933970558,0.10235604,95410.0,95399.0,8.56e-05]
[1734933970559,0.209636,95404.0,95399.0,8.56e-05]
[1734933970813,0.0757,95403.0,95399.0,8.56e-05]
[1734933971039,0.209639,95402.0,95399.0,8.56e-05]
[1734933971290,0.209643,95400.0,95399.0,8.56e-05]
[1734933971532,0.3109514,95400.0,95399.0,8.56e-05]
[1734933975052,0.258519,95412.0,95399.0,8.56e-05]
[1734933975292,0.10235604,95411.0,95399.0,8.56e-05]
[1734933975520,0.209621,95410.0,95399.0,8.56e-05]
[1734933975751,0.209626,95408.0,95399.0,8.56e-05]
[1734933976001,0.10235604,95407.0,95399.0,8.56e-05]
[1734933976500,0.1013084,95407.0,95399.0,8.56e-05]
[1734933976758,0.0001712,95415.0,95400.0,0.0828]
[1734933976994,0.0001712,95415.0,95413.0,0.209614]
[1734933977459,0.0001712,95415.0,95414.0,0.00104798]
[1734933979836,0.0001712,95415.0,95414.0,0.00304798]
[1734933979837,0.0011712,95415.0,95414.0,0.00304798]
[1734933980097,0.0001712,95415.0,95414.0,0.00104798]
[1734933980309,0.0011712,95415.0,95414.0,0.003]
[1734933980581,0.0011712,95415.0,95400.0,0.209641]
[1734933980582,0.209612,95414.0,95400.0,0.209641]
[1734933980844,0.10235604,95413.0,95400.0,0.209641]
[1734933981338,0.209617,95412.0,95395.0,0.209653]
[1734933981604,0.1013084,95411.0,95400.0,0.209643]
[1734933982120,0.00104764,95410.0,95396.0,8.57e-05]
[1734933982386,0.049,95409.0,95396.0,8.57e-05]
[1734933983104,0.049,95409.0,95400.0,0.003]
[1734933983352,0.1013084,95408.0,95400.0,0.003]
[1734933983606,0.00104764,95407.0,95399.0,8.56e-05]
[1734933983863,0.5205684,95406.0,95399.0,0.0030856]
[1734933984107,0.209634,95404.0,95399.0,0.0030856]
[1734933984382,0.209639,95402.0,95399.0,0.0020856]
[1734933984630,0.1013084,95403.0,95400.0,0.001]
[1734933984874,0.10235604,95403.0,95400.0,0.001]
[1734933985567,0.10235604,95403.0,95400.0,0.003]
[1734933985806,0.10235604,95403.0,95400.0,0.002]
[1734933986046,0.10335604,95403.0,95400.0,0.004]
[1734933986329,0.1023084,95403.0,95400.0,0.002]
[1734933986564,0.00104764,95402.0,95399.0,0.0020856]
[1734933986805,0.1013084,95403.0,95400.0,0.002]
[1734933987040,0.1013084,95403.0,95400.0,0.003]
[1734933987269,0.00104764,95402.0,95400.0,0.003]
[1734933987527,0.00104764,95402.0,95400.0,0.002]
[1734933988212,0.1013084,95403.0,95400.0,0.002]
[1734933988687,0.1013084,95403.0,95399.0,0.0020856]
[1734933989181,0.001,95402.0,95399.0,0.0020856]
[1734933989430,0.1013084,95403.0,95400.0,0.002]
[1734933989680,0.1013084,95403.0,95400.0,0.004]
[1734933989913,0.1013084,95403.0,95400.0,0.002]
[1734933990165,0.1013084,95403.0,95399.0,8.56e-05]
[1734933990656,0.1013084,95403.0,95399.0,0.0030856]
[1734933990657,0.21068664,95402.0,95399.0,0.0030856]
[1734933991395,0.209643,95400.0,95399.0,0.0030856]
[1734933991626,0.3895514,95400.0,95399.0,0.0030856]
[1734933991860,0.3895514,95400.0,95399.0,0.0010856]
[1734933992105,0.3895514,95400.0,95399.0,8.56e-05]
[1734933992535,0.3895514,95400.0,95399.0,0.0020856]
[1734933992807,0.3905514,95400.0,95399.0,0.0040856]
[1734933993037,0.3905514,95400.0,95399.0,0.0020856]
[1734933993272,0.3905514,95400.0,95399.0,0.0040856]
[1734933993998,0.3905514,95400.0,95399.0,0.0020856]
[1734933994727,0.4585514,95400.0,95399.0,0.0020856]
[1734933995209,0.4575514,95400.0,95399.0,8.56e-05]
[1734933995465,0.4575514,95400.0,95399.0,0.0020856]
[1734933995687,0.6075514,95400.0,95399.0,0.0030856]
[1734933995891,0.6075514,95400.0,95399.0,0.0010856]
[1734933996102,0.6075514,95400.0,95399.0,0.0020856]
[1734933996308,0.6075514,95400.0,95399.0,0.0010856]
[1734933998223,0.6075514,95400.0,95399.0,8.56e-05]
[1734933998849,0.70133213,95400.0,95399.0,8.56e-05]
[1734933999659,0.71033213,95400.0,95399.0,8.56e-05]
[1734933999862,0.6165514,95400.0,95399.0,8.56e-05]
[1734934000826,0.7165514,95400.0,95399.0,8.56e-05]
[1734934003449,0.1255,95392.0,95383.0,8.57e-05]
[1734934003655,0.310878,95384.0,95383.0,0.00024632]
[1734934003840,0.4121864,95384.0,95383.0,0.00024632]
[1734934005003,0.4121864,95384.0,95383.0,0.00224632]
[1734934007311,0.4131864,95384.0,95383.0,0.00224632]
[1734934007937,0.4131864,95384.0,95383.0,0.00024632]
[1734934008148,0.5631864,95384.0,95383.0,0.00024632]
[1734934008437,0.5641864,95384.0,95383.0,0.00024632]
[1734934009584,0.6641864,95384.0,95383.0,0.00024632]
[1734934010267,0.68570078,95384.0,95383.0,0.00024632]
[1734934011742,0.71157608,95384.0,95383.0,0.00024632]
[1734934019154,0.209722,95364.0,95363.0,8.56e-05]
[1734934019359,0.3340304,95364.0,95363.0,8.56e-05]
[1734934020279,0.3110304,95364.0,95363.0,8.56e-05]
[1734934021540,0.3340304,95364.0,95363.0,8.56e-05]
[1734934021756,0.3120304,95364.0,95363.0,0.0040856]
[1734934021958,0.3110304,95364.0,95363.0,0.0030856]
[1734934022394,0.33690483,95364.0,95363.0,0.0040856]
[1734934022723,0.33690483,95364.0,95363.0,0.0010856]
[1734934028090,0.41260483,95364.0,95363.0,0.0010856]
[1734934031011,0.20288283,95364.0,95363.0,0.0010856]
[1734934031223,0.12823047,95364.0,95363.0,0.0010856]
[1734934037104,0.1013084,95364.0,95363.0,0.0010856]
[1734934037987,0.0789,95371.0,95363.0,0.0010856]
[1734934037988,0.00104764,95367.0,95363.0,0.0010856]
[1734934038251,0.1013084,95366.0,95363.0,0.0010856]
[1734934038482,0.00104764,95365.0,95363.0,0.0010856]
[1734934038690,0.10235604,95365.0,95363.0,0.0010856]
[1734934039334,0.10235604,95365.0,95363.0,8.56e-05]
[1734934039756,0.00016056,95384.0,95365.0,0.0469]
[1734934039964,0.00016056,95384.0,95377.0,0.209692]
[1734934040176,0.00016056,95384.0,95377.0,0.419385]
[1734934040852,0.00016056,95384.0,95379.0,0.209689]
[1734934041475,0.00016056,95384.0,95381.0,0.209685]
[1734934041692,0.0011714,95383.0,95382.0,0.00104829]
[1734934041934,0.0011714,95383.0,95371.0,0.209707]
[1734934042146,0.1013084,95382.0,95373.0,0.02540178]
[1734934042355,0.10235604,95382.0,95369.0,0.09346459]
[1734934042567,0.10235604,95382.0,95379.0,0.001]
[1734934043442,0.00104764,95381.0,95379.0,0.001]
[1734934043659,0.1013084,95380.0,95367.0,0.209714]
[1734934043862,0.00104764,95379.0,95367.0,0.209714]
[1734934044075,0.1013084,95378.0,95372.0,0.209705]
[1734934044515,0.04019588,95378.0,95372.0,0.209705]
[1734934045593,0.04019588,95378.0,95372.0,0.211705]
[1734934046215,0.04019588,95378.0,95372.0,0.42141]
[1734934046635,0.0001714,95383.0,95377.0,0.209692]
[1734934046864,0.0001714,95383.0,95372.0,0.002]
[1734934047051,0.001,95378.0,95372.0,0.004]
[1734934047394,0.001,95378.0,95372.0,0.002]
[1734934047813,0.0001714,95383.0,95378.0,0.209691]
[1734934048217,0.0001714,95383.0,95379.0,0.00104842]
[1734934048423,0.0001714,95383.0,95380.0,0.209687]
[1734934049666,0.0001714,95383.0,95380.0,0.211687]
[1734934049869,0.0001714,95383.0,95380.0,0.002]
[1734934050485,0.0001714,95383.0,95380.0,0.211687]
[1734934051249,0.0001714,95383.0,95380.0,0.212687]
[1734934053482,0.0001714,95383.0,95380.0,0.003]
[1734934053923,0.0781714,95383.0,95380.0,0.003]
[1734934054434,0.36103904,95382.0,95380.0,0.003]
[1734934055911,0.02404764,95381.0,95354.0,0.09346459]
[1734934056117,0.209722,95364.0,95354.0,0.09346459]
[1734934056376,0.292522,95364.0,95352.0,0.02270125]
[1734934056569,0.292522,95364.0,95350.0,8.56e-05]
[1734934057133,0.292522,95364.0,95351.0,0.209749]
[1734934057355,0.0838,95364.0,95363.0,0.0020856]
[1734934058305,0.0838,95364.0,95363.0,0.0050856]
[1734934059135,0.0828,95364.0,95363.0,0.0030856]
[1734934059551,0.0828,95364.0,95363.0,0.0020856]
[1734934059752,0.0828,95364.0,95363.0,8.56e-05]
[1734934060335,0.0828,95364.0,95363.0,0.0020856]
[1734934060568,0.1841084,95364.0,95363.0,0.0020856]
[1734934062449,0.23325604,95364.0,95363.0,0.0020856]
[1734934062654,0.2322084,95364.0,95363.0,8.56e-05]
[1734934063051,0.2322084,95364.0,95363.0,0.0030856]
[1734934063258,0.2322084,95364.0,95363.0,0.0010856]
[1734934063434,0.2322084,95364.0,95363.0,8.56e-05]
[1734934063633,0.2332084,95364.0,95363.0,8.56e-05]
[1734934063829,0.2322084,95364.0,95363.0,8.56e-05]
[1734934064183,0.2332084,95364.0,95363.0,8.56e-05]
[1734934064328,0.209744,95355.0,95338.0,0.00104878]
[1734934064542,0.209746,95353.0,95338.0,0.00104878]
[1734934064737,0.00104764,95352.0,95338.0,0.00104878]
[1734934065392,0.209758,95348.0,95335.0,0.02318944]
[1734934065611,0.209762,95346.0,95326.0,0.209805]
[1734934065817,0.0473,95344.0,95325.0,0.09346459]
[1734934066012,0.209788,95335.0,95325.0,0.09346459]
[1734934066190,0.209788,95335.0,95324.0,0.09346459]
[1734934066396,0.209788,95335.0,95325.0,0.02220718]
[1734934066600,0.0758,95335.0,95325.0,0.02220718]
[1734934067026,0.0758,95335.0,95326.0,0.209805]
[1734934067229,0.00104764,95341.0,95329.0,0.209799]
[1734934067434,0.1013084,95343.0,95329.0,0.209799]
[1734934068403,0.1013084,95343.0,95329.0,0.211799]
[1734934069255,0.001,95335.0,95329.0,0.211799]
[1734934069479,0.1013084,95343.0,95329.0,0.211799]
[1734934070305,0.1023084,95343.0,95329.0,0.211799]
[1734934070671,0.1013084,95343.0,95329.0,0.211799]
[1734934070871,0.1013084,95343.0,95329.0,0.421598]
[1734934071133,0.1023084,95343.0,95329.0,0.421598]
[1734934071328,0.1023084,95343.0,95329.0,0.419598]
[1734934071523,0.1023084,95343.0,95335.0,0.209785]
[1734934072310,0.1013084,95343.0,95330.0,0.209797]
[1734934072766,0.1023084,95343.0,95330.0,0.209797]
[1734934072911,0.1013084,95343.0,95330.0,0.419594]
[1734934073113,0.0001714,95350.0,95335.0,0.001]
[1734934073312,0.001,95343.0,95335.0,0.001]
[1734934073542,0.1013084,95349.0,95337.0,0.209781]
[1734934073959,0.001,95343.0,95337.0,0.209781]
[1734934074148,0.00104764,95348.0,95337.0,0.209781]
[1734934074322,0.10235604,95348.0,95337.0,0.209781]
[1734934075944,0.001,95343.0,95337.0,0.209781]
[1734934076768,0.10235604,95348.0,95337.0,0.209781]
[1734934077173,0.1013084,95348.0,95337.0,0.209781]
[1734934077725,0.001,95343.0,95337.0,0.209781]
[1734934078894,0.001,95343.0,95337.0,0.210781]
[1734934079101,0.00104764,95347.0,95337.0,0.210781]
[1734934079640,0.1782084,95346.0,95337.0,0.001]
[1734934079829,0.00104764,95345.0,95337.0,0.001]
[1734934080000,0.001,95343.0,95337.0,0.001]
[1734934080215,0.10235604,95343.0,95337.0,0.001]
[1734934080412,0.1013084,95343.0,95337.0,0.001]
[1734934080610,0.1013084,95343.0,95336.0,0.209783]
[1734934080963,0.0001714,95350.0,95342.0,0.209771]
[1734934081189,0.1013084,95349.0,95337.0,0.209782]
[1734934081581,0.124,95348.0,95337.0,0.001]
[1734934081804,0.22635604,95348.0,95337.0,0.001]
[1734934082193,0.22635604,95348.0,95335.0,0.209784]
[1734934083153,0.001,95343.0,95335.0,0.209784]
[1734934083358,0.001,95343.0,95329.0,8.57e-05]
[1734934083359,0.001,95343.0,95342.0,0.209771]
[1734934083757,0.2253084,95348.0,95336.0,0.209784]
[1734934083758,0.00104764,95347.0,95336.0,0.209784]
[1734934084187,0.2253084,95348.0,95329.0,8.57e-05]
[1734934084366,0.2253084,95348.0,95342.0,0.20977]
[1734934084810,0.2253084,95348.0,95342.0,0.21077]
[1734934085036,0.001,95343.0,95342.0,0.21077]
[1734934085226,0.001,95343.0,95338.0,0.209779]
[1734934085390,0.2253084,95348.0,95338.0,0.209779]
[1734934085599,0.2253084,95348.0,95335.0,0.209784]
[1734934085948,0.1013084,95348.0,95343.0,0.209767]
[1734934086150,0.1013084,95348.0,95335.0,0.209784]
[1734934086437,0.1013084,95348.0,95340.0,0.209773]
[1734934086735,0.1013084,95348.0,95340.0,0.419548]
[1734934086967,0.1013084,95348.0,95342.0,0.001]
[1734934088089,0.1013084,95348.0,95340.0,0.209773]
[1734934088729,0.0001714,95350.0,95340.0,0.209773]
[1734934088730,0.0001714,95350.0,95347.0,0.20976]
[1734934089367,0.0001714,95350.0,95349.0,0.209755]
[1734934090182,0.0787,95349.0,95343.0,0.209768]
[1734934090849,0.0787,95349.0,95340.0,0.15]
[1734934091019,0.0787,95349.0,95340.0,0.15104876]
[1734934091855,0.0787,95349.0,95346.0,0.20976]
[1734934092083,0.0001714,95350.0,95346.0,0.20976]
[1734934093705,0.0001714,95350.0,95341.0,0.209773]
[1734934093892,0.0011714,95350.0,95347.0,0.209759]
[1734934094106,0.0001714,95350.0,95347.0,0.209759]
[1734934094542,0.0011714,95350.0,95347.0,0.209759]
[1734934094759,0.0001714,95350.0,95347.0,0.209759]
[1734934095197,0.0011714,95350.0,95347.0,0.209759]
[1734934097211,0.0011714,95350.0,95347.0,0.212759]
[1734934098164,0.0011714,95350.0,95347.0,0.209759]
[1734934098365,0.0001714,95350.0,95347.0,0.209759]
[1734934098562,0.0011714,95350.0,95347.0,0.212759]
[1734934099194,0.0011714,95350.0,95347.0,0.003]
[1734934099402,0.0832,95349.0,95347.0,0.003]
[1734934100271,0.0832,95349.0,95340.0,0.09346459]
[1734934100468,0.36091304,95348.0,95347.0,0.002]
[1734934100669,0.4400654,95348.0,95347.0,0.002]
[1734934101048,0.0802,95347.0,95340.0,0.09346459]
[1734934101246,0.0786,95344.0,95337.0,0.09546459]
[1734934101453,0.10235604,95343.0,95337.0,0.09546459]
[1734934102213,0.10235604,95343.0,95337.0,0.002]
[1734934102669,0.31312404,95343.0,95337.0,0.002]
[1734934102880,0.1248,95340.0,95337.0,0.002]
[1734934103097,0.10235604,95339.0,95337.0,0.002]
[1734934104121,0.10235604,95339.0,95337.0,0.005]
[1734934104483,0.10235604,95339.0,95337.0,0.002]
[1734934104907,0.10235604,95339.0,95337.0,0.005]
[1734934105279,0.10335604,95339.0,95337.0,0.005]
[1734934106322,0.10335604,95339.0,95337.0,0.002]
[1734934106749,0.10235604,95339.0,95337.0,0.004]
[1734934107155,0.10235604,95339.0,95337.0,0.002]
[1734934107308,0.10235604,95339.0,95337.0,0.004]
[1734934107912,0.10235604,95339.0,95337.0,0.002]
[1734934108114,0.10235604,95339.0,95337.0,0.004]
[1734934108319,0.10335604,95339.0,95337.0,0.004]
[1734934108679,0.10335604,95339.0,95337.0,0.0040856]
[1734934109263,0.0786,95338.0,95337.0,0.0040856]
[1734934109430,0.1799084,95338.0,95337.0,0.0020856]
[1734934109817,0.1799084,95338.0,95337.0,0.0040856]
[1734934110238,0.1799084,95338.0,95337.0,0.0020856]
[1734934110651,0.1799084,95338.0,95337.0,0.0040856]
[1734934111207,0.1799084,95338.0,95337.0,0.0020856]
[1734934111397,0.1799084,95338.0,95337.0,0.0050856]
[1734934111753,0.1809084,95338.0,95337.0,0.0050856]
[1734934112076,0.1799084,95338.0,95337.0,0.0050856]
[1734934112474,0.1809084,95338.0,95337.0,0.0020856]
[1734934112881,0.1809084,95338.0,95337.0,0.0040856]
[1734934113286,0.1799084,95338.0,95337.0,0.0020856]
[1734934114223,0.1799084,95338.0,95337.0,0.0030856]
[1734934115029,0.1809084,95338.0,95337.0,0.0030856]
[1734934115258,0.1799084,95338.0,95337.0,0.0030856]
[1734934115551,0.1799084,95338.0,95337.0,0.0010856]
[1734934115989,0.1799084,95338.0,95337.0,0.0020856]
[1734934116378,0.1799084,95338.0,95337.0,0.0010856]
[1734934116731,0.1799084,95338.0,95337.0,0.0020856]
[1734934116948,0.1541,95336.0,95329.0,8.57e-05]
[1734934117177,0.1013084,95330.0,95329.0,8.57e-05]
[1734934117380,0.1013084,95330.0,95320.0,0.03485429]
[1734934117381,0.0721,95329.0,95320.0,0.03485429]
[1734934117590,0.209817,95321.0,95320.0,0.03485429]
[1734934117795,0.4652254,95321.0,95320.0,0.03485429]
[1734934118570,0.023,95320.0,95315.0,7e-05]
[1734934118773,0.023,95318.0,95315.0,7e-05]
[1734934119070,0.10235604,95317.0,95315.0,7e-05]
[1734934119454,0.023,95316.0,95315.0,7e-05]
[1734934119588,0.1243084,95316.0,95315.0,7e-05]
[1734934119999,0.1243084,95316.0,95315.0,0.00207]
[1734934120422,0.1243084,95316.0,95315.0,7e-05]
[1734934120631,0.1999084,95316.0,95315.0,7e-05]
[1734934121154,0.20095604,95316.0,95315.0,7e-05]
[1734934121585,0.17895604,95316.0,95315.0,7e-05]
[1734934121758,0.1779084,95316.0,95315.0,7e-05]
[1734934121969,0.1769084,95316.0,95315.0,7e-05]
[1734934122556,0.1999084,95316.0,95315.0,7e-05]
[1734934130261,0.2468084,95316.0,95315.0,7e-05]
[1734934130469,0.24596196,95316.0,95315.0,7e-05]
[1734934130677,0.023,95315.0,95314.0,1e-08]
[1734934130878,0.1271,95305.0,95303.0,8.57e-05]
[1734934131086,0.1243084,95304.0,95303.0,8.57e-05]
[1734934131292,0.4143624,95304.0,95303.0,8.57e-05]
[1734934131921,0.43556926,95304.0,95303.0,8.57e-05]
[1734934132919,0.4143624,95304.0,95303.0,8.57e-05]
[1734934133123,0.1815084,95304.0,95303.0,8.57e-05]
[1734934133290,0.18255604,95304.0,95303.0,8.57e-05]
[1734934134689,0.20555604,95304.0,95303.0,8.57e-05]
[1734934134884,0.20955604,95304.0,95303.0,8.57e-05]
[1734934135177,0.2065084,95304.0,95303.0,8.57e-05]
[1734934135823,0.127,95288.0,95268.0,0.209933]
[1734934136107,0.127,95288.0,95269.0,0.00104954]
[1734934136108,0.22935604,95288.0,95269.0,0.00104954]
[1734934136316,0.2283084,95288.0,95275.0,0.209917]
[1734934137102,0.2284687,95288.0,95269.0,0.15]
[1734934137317,0.2284687,95288.0,95269.0,0.15104954]
[1734934138377,0.2284687,95288.0,95287.0,0.0020857]
[1734934138678,0.2294687,95288.0,95287.0,0.0020857]
[1734934139253,0.2294687,95288.0,95287.0,8.57e-05]
[1734934139467,0.2284687,95288.0,95287.0,8.57e-05]
[1734934139836,0.2514687,95288.0,95287.0,8.57e-05]
[1734934140257,0.2524687,95288.0,95287.0,8.57e-05]
[1734934141285,0.2534687,95288.0,95287.0,8.57e-05]
[1734934141828,0.2524687,95288.0,95287.0,8.57e-05]
[1734934141975,0.2514687,95288.0,95287.0,8.57e-05]
[1734934142161,0.2534687,95288.0,95287.0,8.57e-05]
[1734934142480,0.2524687,95288.0,95287.0,8.57e-05]
[1734934142689,0.2514687,95288.0,95287.0,8.57e-05]
[1734934142883,0.2534687,95288.0,95287.0,8.57e-05]
[1734934144734,0.2524687,95288.0,95287.0,8.57e-05]
[1734934145429,0.2534687,95288.0,95287.0,8.57e-05]
[1734934145613,0.2524687,95288.0,95287.0,8.57e-05]
[1734934146153,0.2514687,95288.0,95287.0,8.57e-05]
[1734934146690,0.2524687,95288.0,95287.0,8.57e-05]
[1734934147342,0.2534687,95288.0,95287.0,8.57e-05]
[1734934147965,0.2524687,95288.0,95287.0,8.57e-05]
[1734934148120,0.2534687,95288.0,95287.0,8.57e-05]
[1734934148516,0.2524687,95288.0,95287.0,8.57e-05]
[1734934148726,0.2514687,95288.0,95287.0,8.57e-05]
[1734934148927,0.2534687,95288.0,95287.0,8.57e-05]
[1734934149841,0.2544687,95288.0,95287.0,8.57e-05]
[1734934150496,0.2534687,95288.0,95287.0,8.57e-05]
[1734934150713,0.2544687,95288.0,95287.0,8.57e-05]
[1734934151065,0.2534687,95288.0,95287.0,8.57e-05]
[1734934151465,0.2544687,95288.0,95287.0,8.57e-05]
[1734934151929,0.2524687,95288.0,95287.0,8.57e-05]
[1734934152256,0.2524687,95288.0,95267.0,8.57e-05]
[1734934152257,0.209934,95268.0,95267.0,7e-07]
[1734934152501,0.209934,95268.0,95264.0,0.0028495]
[1734934152502,0.123,95265.0,95264.0,0.0028495]
[1734934152700,0.311471,95251.0,95223.0,0.35024982]
[1734934152898,0.311471,95251.0,95229.0,0.210019]
[1734934152899,0.4127794,95251.0,95229.0,0.210019]
[1734934153103,0.4127794,95251.0,95228.0,0.21002]
[1734934153305,0.4601794,95251.0,95223.0,0.35024982]
[1734934153465,0.4601794,95251.0,95229.0,0.210019]
[1734934154182,0.10146861,95251.0,95229.0,0.210019]
[1734934154411,0.10146861,95251.0,95235.0,0.210004]
[1734934154634,0.10146861,95251.0,95241.0,0.2100766]
[1734934155193,0.10146861,95251.0,95247.0,0.209978]
[1734934155391,0.00016021,95251.0,95247.0,0.209978]
[1734934155616,0.00016021,95251.0,95243.0,0.15]
[1734934156344,0.00016021,95251.0,95250.0,0.0010856]
[1734934157929,0.10146861,95251.0,95250.0,0.0010856]
[1734934159501,0.10246861,95251.0,95250.0,0.0040856]
[1734934159929,0.10146861,95251.0,95250.0,0.0010856]
[1734934160125,0.10146861,95251.0,95250.0,0.0030856]
[1734934160345,0.10146861,95251.0,95250.0,0.0040856]
[1734934160579,0.10146861,95251.0,95250.0,0.0020856]
[1734934161682,0.12551625,95251.0,95250.0,0.0010856]
[1734934161901,0.12551625,95251.0,95250.0,0.0020856]
[1734934162105,0.12551625,95251.0,95250.0,0.0010856]
[1734934162426,0.12951625,95251.0,95250.0,0.0010856]
[1734934162642,0.12551625,95251.0,95250.0,0.0010856]
[1734934163190,0.12951625,95251.0,95250.0,0.0010856]
[1734934163391,0.12551625,95251.0,95250.0,0.0010856]
[1734934163833,0.12751625,95251.0,95250.0,0.0010856]
[1734934164320,0.12551625,95251.0,95250.0,0.0010856]
[1734934164696,0.12951625,95251.0,95250.0,0.0010856]
[1734934164897,0.12651625,95251.0,95250.0,0.0010856]
[1734934165306,0.12851625,95251.0,95250.0,0.0010856]
[1734934165747,0.12651625,95251.0,95250.0,0.0010856]
[1734934165959,0.14901508,95251.0,95250.0,0.0010856]
[1734934166144,0.14801508,95251.0,95250.0,0.0010856]
[1734934166872,0.14701508,95251.0,95250.0,0.0010856]
[1734934167037,0.22896744,95251.0,95250.0,0.0010856]
[1734934167254,0.22996744,95251.0,95250.0,0.0010856]
[1734934167922,0.22896744,95251.0,95250.0,0.0010856]
[1734934168791,0.22996744,95251.0,95250.0,0.0010856]
[1734934169601,0.50031247,95251.0,95250.0,0.0010856]
[1734934169827,0.49931247,95251.0,95250.0,0.0010856]
[1734934169988,0.27796744,95251.0,95250.0,0.0010856]
[1734934170202,0.62896744,95251.0,95250.0,0.0010856]
[1734934170603,0.52896744,95251.0,95250.0,0.0010856]
[1734934171198,0.52896744,95251.0,95250.0,1e-08]
[1734934171803,0.52796744,95251.0,95250.0,1e-08]
[1734934172004,0.52696744,95251.0,95250.0,1e-08]
[1734934172215,0.52696744,95251.0,95231.0,0.0143897]
[1734934172216,0.223,95232.0,95231.0,0.0143897]
[1734934172413,0.210039,95220.0,95207.0,8.56e-05]
[1734934172673,0.210039,95220.0,95189.0,0.210107]
[1734934172674,0.210066,95208.0,95189.0,0.210107]
[1734934172891,0.291942,95219.0,95189.0,0.210107]
[1734934172892,0.14845604,95207.0,95189.0,0.210107]
[1734934173035,0.21007,95206.0,95189.0,0.210107]
[1734934173237,0.10235604,95205.0,95189.0,0.210107]
[1734934173432,0.10235604,95205.0,95189.0,0.420214]
[1734934173898,0.10235604,95205.0,95189.0,0.210107]
[1734934173899,0.10251613,95205.0,95189.0,0.210107]
[1734934174100,0.210075,95204.0,95185.0,0.210115]
[1734934174306,0.0819,95199.0,95181.0,0.15]
[1734934174422,0.0819,95199.0,95169.0,0.31015]
[1734934174423,0.1013084,95198.0,95169.0,0.21015]
[1734934174627,0.210102,95192.0,95169.0,0.21015]
[1734934174834,0.210102,95192.0,95175.0,0.210137]
[1734934174835,0.10235604,95191.0,95175.0,0.210137]
[1734934175034,0.10235604,95191.0,95169.0,0.21015]
[1734934175035,0.210106,95190.0,95169.0,0.21015]
[1734934175231,0.128,95187.0,95149.0,0.1]
[1734934175432,0.128,95187.0,95148.0,0.09398575]
[1734934175433,0.25335604,95187.0,95148.0,0.09398575]
[1734934175639,0.210132,95178.0,95150.0,0.210192]
[1734934175842,0.12610319,95175.0,95148.0,0.30418275]
[1734934176045,0.210159,95167.0,95148.0,0.30418275]
[1734934176289,0.10235604,95166.0,95142.0,0.21021]
[1734934176464,0.10235604,95166.0,95143.0,0.00105089]
[1734934176668,0.10235604,95166.0,95148.0,0.210196]
[1734934177119,0.10251601,95166.0,95148.0,0.210196]
[1734934177375,0.10251601,95166.0,95165.0,0.00114032]
[1734934177897,0.10251601,95166.0,95165.0,0.00014032]
[1734934178266,0.10251601,95166.0,95165.0,0.00114032]
[1734934179078,0.00015997,95166.0,95165.0,0.00114032]
[1734934179725,0.10146837,95166.0,95165.0,0.00114032]
[1734934180465,0.00015997,95166.0,95165.0,0.00014032]
[1734934180807,0.00115997,95166.0,95165.0,0.00014032]
[1734934181230,2.067e-05,95166.0,95163.0,0.210165]
[1734934181436,2.067e-05,95166.0,95164.0,0.00105071]
[1734934181654,2.067e-05,95166.0,95165.0,0.210161]
[1734934181902,2.067e-05,95166.0,95165.0,0.360161]
[1734934182093,2.067e-05,95166.0,95165.0,0.541361]
[1734934182307,0.00102067,95166.0,95165.0,0.7427551]
[1734934182731,0.00102067,95166.0,95165.0,0.7437551]
[1734934183141,0.00104764,95214.0,95206.0,0.21007]
[1734934183318,0.10235604,95213.0,95206.0,0.21007]
[1734934183786,0.1013084,95212.0,95192.0,0.15]
[1734934183953,0.00016113,95215.0,95209.0,0.210063]
[1734934184233,0.00016113,95215.0,95211.0,0.420118]
[1734934184449,0.002,95214.0,95213.0,0.210055]
[1734934184642,0.002,95214.0,95213.0,0.360055]
[1734934185803,0.00016113,95215.0,95213.0,0.360055]
[1734934186016,0.00016113,95215.0,95214.0,0.25105011]
[1734934186218,0.00016113,95215.0,95213.0,0.215055]
[1734934186426,0.00016113,95215.0,95213.0,0.005]
[1734934186812,0.00016113,95215.0,95213.0,0.002]
[1734934187016,0.00016113,95215.0,95213.0,0.007]
[1734934187227,0.00016113,95215.0,95214.0,0.210053]
[1734934187228,0.00116113,95215.0,95214.0,0.210053]
[1734934188415,0.00016113,95215.0,95214.0,0.210053]
[1734934189337,0.00116113,95215.0,95214.0,0.215053]
[1734934189489,0.00016113,95215.0,95214.0,0.210053]
[1734934189684,0.00016113,95215.0,95214.0,0.212053]
[1734934189918,0.00116113,95215.0,95214.0,0.217053]